Cogmind - Beta 13 @@@ ROGUE MODE // 2024.03.31 @ 21:15:29 Player: Beefox Result: Destroyed by G-47 Trooper with Particle Gun Performance ------------- Evolutions (0) 0 Regions Visited (2) 400 Robots Destroyed (9) 45 Value Destroyed (243) 243 Prototype IDs (0) 0 Alien Tech Used (0) 0 Bonus (0) 0 TOTAL SCORE: 688 Bonus ------- None Cogmind --------- Core Integrity 0/250 Matter 259/400 Energy 91/100 System Corruption 0% Temperature Warm (182) Movement Core (100) Ox1 Location -10/Mines Parts ------- > --- POWER (1) -------- (None) > --- PROPULSION (2) --- (None) > --- UTILITY (2) ------ Heat Sink Medium Matter Pod > --- WEAPON (2) ------- Small Laser Light Assault Rifle > --- INVENTORY (5) ---- Light Ion Engine Large Battery (200) Small Matter Pod (13) Tractor Beam Peak State ------------ > --- POWER ------------ Light Ion Engine > --- PROPULSION ------- Wheel Wheel > --- UTILITY ---------- Heat Sink Signal Interpreter > --- WEAPON ----------- Medium Laser Medium Laser > --- INVENTORY -------- Ion Engine Small Laser [Rating: 7] Favorites ----------- Power Light Ion Engine Engine Light Ion Engine Propulsion Wheel Wheel Wheel Utility Heat Sink Device Heat Sink Storage Medium Matter Pod Processor Signal Interpreter Weapon Medium Laser Energy Gun Medium Laser Ballistic Gun Light Assault Rifle Build | -11 -10 -10 ------- Run | Yrd Mat Min Slots Evolved . | . . . Power . | . . . Propulsion . | . . . Utility . | . . . Weapon . | . . . Parts Attached 13 | 5 7 1 Power 2 | 1 1 . Engine 2 | 1 1 . Core . | . . . Reactor . | . . . Propulsion 3 | 2 1 . Treads . | . . . Leg . | . . . Wheel 3 | 2 1 . Hover . | . . . Flight . | . . . Utility 3 | . 3 . Device 1 | . 1 . Storage 1 | . 1 . Processor 1 | . 1 . Hackware . | . . . Protection . | . . . Artifact . | . . . Weapon 5 | 2 2 1 Energy Gun 4 | 2 1 1 Energy Cannon . | . . . Ballistic Gun 1 | . 1 . Ballistic Cannon . | . . . Launcher . | . . . Special Weapon . | . . . Impact Weapon . | . . . Slashing Weapon . | . . . Piercing Weapon . | . . . Special Melee Weapon . | . . . Unidentified Prototypes . | . . . Parts Lost 7 | . 3 4 Power 2 | . 1 1 Propulsion 3 | . 1 2 Utility . | . . . Weapon 2 | . 1 1 Highest Loss Streak 4 | . 2 4 To Critical Strikes . | . . . Average Slot Usage (%) 87 | . 85 94 Engine 11 | . 11 12 Wheel 25 | . 25 24 Device 10 | . 9 14 Storage 4 | . 1 14 Processor 6 | . 8 . Energy Gun 23 | . 26 14 Ballistic Gun 4 | . 1 14 Naked Turns . | . . . Heaviest Build 11 | 7 11 11 Greatest Support 20 | 20 20 20 Greatest Overweight (x) . | . . . Average Overweight (x) . | . . . Largest Inventory Capacity 5 | 5 5 5 Average Capacity 5 | 5 5 5 Most Carried 5 | 2 5 5 Average Carried 3 | . 2 4 Final Capacity 5 | 5 5 5 Final Carried 5 | 1 5 4 Class Distribution -------------------- 57% | Mutant 42% | Scavenger-Mutant Dominant Class ---------------- Mutant | -10/Materials Scavenger-Mutant | -10/Mines Resources | -11 -10 -10 ----------- Run | Yrd Mat Min Matter Collected 273 | 250 23 . Remotely . | . . . Salvage Created 295 | 49 246 . Parts 18 | 2 16 . Haulers Intercepted . | . . . Recyclers Shooed . | . . . Parts Field Recycled . | . . . Retrieved Matter . | . . . Parts Self-Destructed . | . . . Prevented . | . . . Kills | -11 -10 -10 ------- Run | Yrd Mat Min Combat Hostiles Destroyed 6 | 1 5 . Guns 6 | 1 5 . Classes Destroyed 4 | 1 3 . Builder 1 | . 1 . Watcher 2 | . 2 . Swarmer 1 | . 1 . Grunt 5 | 1 4 . Best Kill Streak 3 | 1 3 . Combat Bots Only 2 | 1 2 . Max Kills in Single Turn 1 | 1 1 . Gunslinging . | . . . Exploded . | . . . Melee . | . . . Uniques/NPCs Destroyed . | . . . Combat | -11 -10 -10 -------- Run | Yrd Mat Min Hostile Shots Fired 90 | 5 61 24 Missed 25 | 2 20 3 Damage Taken 745 | 32 451 262 Core 256 | 10 159 87 Absorbed by Shields . | . . . Core Remaining (%) 96 | 96 . . Volleys Fired 53 | 4 43 6 Largest 2 | 2 2 2 Hottest 100 | 100 100 70 Shots Fired 105 | 8 85 12 Gun 105 | 8 85 12 Cannon . | . . . Launcher . | . . . Special . | . . . Kinetic 6 | . . 6 Thermal 99 | 8 85 6 Explosive . | . . . Electromagnetic . | . . . Robot Hit Streak 5 | 2 5 3 Robot Miss Streak 4 | 2 4 1 Penetration Max . | . . . Secondary Targets 1 | . 1 . Max Gunslinging Chain 1 | . 1 . Shots Hit Robots 56 | 4 43 9 Core Hits 19 | 2 15 2 Critical Kills . | . . . Critical Parts Destroyed . | . . . Critical Strikes 5 | 1 4 . Burn 5 | 1 4 . Melee Attacks . | . . . Impact . | . . . Slashing . | . . . Piercing . | . . . Sneak Attacks . | . . . Combat Hostiles . | . . . Follow-up Attacks . | . . . Damage Inflicted 726 | 50 569 107 Guns 726 | 50 569 107 Cannons . | . . . Explosions . | . . . Melee . | . . . Ramming . | . . . Kinetic 35 | . . 35 Thermal 691 | 50 569 72 Explosive . | . . . Electromagnetic . | . . . Impact . | . . . Slashing . | . . . Piercing . | . . . Highest Corruption . | . . . Average Corruption . | . . . Corruption Purged . | . . . Corruption Blocked . | . . . Overload Shots . | . . . Overflow Damage . | . . . Projectiles . | . . . Explosions . | . . . Melee . | . . . Knockbacks . | . . . Impact . | . . . Kinetic . | . . . Secondary . | . . . Self-Inflicted Damage . | . . . Shots . | . . . Rammed . | . . . Targets Rammed . | . . . Kicked . | . . . Crushed . | . . . Highest Temperature 319 | 174 319 186 Average Temperature 117 | 91 119 119 Received Heat Transfer 348 | 18 186 144 Siege Activations . | . . . Robots Corrupted . | . . . Combat Hostiles . | . . . Parts Fried . | . . . Impact Corruptions . | . . . Robots Melted . | . . . Combat Hostiles . | . . . Parts Melted 1 | . 1 . Heat Transferred 2382 | 222 1950 210 Parts Sabotaged . | . . . Parts Stolen . | . . . Parts Stripped . | . . . Power Chain Reactions . | . . . Alert | -11 -10 -10 ------- Run | Yrd Mat Min Peak Influence 186 | 20 186 72 Initial 72 | . 13 72 Average 85 | 3 108 65 Maximum Alert Level . | . . . Low Security (%) 100 | 100 100 100 Level 1 . | . . . Level 2 . | . . . Level 3 . | . . . Level 4 . | . . . Level 5 . | . . . High Security . | . . . Max Security . | . . . Squads Dispatched 2 | . 1 1 Investigation 1 | . 1 . Extermination . | . . . Reinforcement . | . . . Assault 1 | . . 1 Garrison . | . . . Intercept . | . . . Searches Triggered . | . . . Construction Impeded . | . . . Haulers Reinforced . | . . . Active Scanning Responses . | . . . Cargo Convoy Interrupts . | . . . Stealth | -11 -10 -10 --------- Run | Yrd Mat Min Distress Signals 3 | . 3 . Communications Jammed . | . . . Distress Signals . | . . . Times Spotted 17 | 1 12 4 Peak Tracking Total 4 | 1 4 4 Tactical Retreats 2 | . 2 . Traps | -11 -10 -10 ------- Run | Yrd Mat Min Traps Triggered . | . . . Indirectly . | . . . Trap Hack Attempts . | . . . Triggered . | . . . Disarmed . | . . . Reprogrammed . | . . . Reused . | . . . Traps Extracted . | . . . Installed 3 | . . 3 Triggered . | . . . Machines | -11 -10 -10 ---------- Run | Yrd Mat Min Machines Disabled . | . . . Max in Single Turn . | . . . Machines Repaired . | . . . Machines Dismantled . | . . . Machines Sabotaged . | . . . Overloaded Fab Kills . | . . . Hacking | -11 -10 -10 --------- Run | Yrd Mat Min Machines Accessed 3 | . 3 . Terminals 3 | . 3 . Fabricators . | . . . Repair Stations . | . . . Recycling Units . | . . . Scanalyzers . | . . . Garrison Access . | . . . Total Hacks 12 | . 12 . Successful 6 | . 6 . Failed 6 | . 6 . Catastrophic . | . . . Database Lockouts . | . . . Manual . | . . . Terminals 12 | . 12 . Fabricators . | . . . Repair Stations . | . . . Recycling Units . | . . . Scanalyzers . | . . . Garrison Access . | . . . Terminal Hacks 6 | . 6 . Record 5 | . 5 . Zone Layout 1 | . 1 . Fabricator Hacks . | . . . Repair Station Hacks . | . . . Recycling Unit Hacks . | . . . Scanalyzer . | . . . Garrison Access Hacks . | . . . Unauthorized Hacks . | . . . Terminals . | . . . Fabricators . | . . . Repair Stations . | . . . Recycling Units . | . . . Scanalyzers . | . . . Garrison Access . | . . . Data Cores Recovered . | . . . Used . | . . . Hacking Detections 3 | . 3 . Full Trace Events 2 | . 2 . Feedback Events . | . . . Feedback Blocked . | . . . Robot Schematics Acquired . | . . . Robots Built . | . . . Authchips . | . . . Time . | . . . Total Robot Build Rating . | . . . Part Schematics Acquired . | . . . Parts Built . | . . . Authchips . | . . . Time . | . . . Total Part Build Rating . | . . . Parts Repaired . | . . . Time . | . . . Parts Recycled . | . . . Recycled Matter . | . . . Retrieved Matter . | . . . Retrieved Components . | . . . Parts Scanalyzed . | . . . Part Schematics Acquired . | . . . Parts Damaged . | . . . Bothacking | -11 -10 -10 ------------ Run | Yrd Mat Min Used RIF Installer . | . . . Robots Hacked . | . . . Non-combat . | . . . Combat . | . . . Robot Hacks Applied . | . . . Relay Couplers Released . | . . . Fabnet Peak Effective % . | . . . Robots Rewired . | . . . Allies Hacked . | . . . Hacks Repelled . | . . . Allies | -11 -10 -10 -------- Run | Yrd Mat Min Total Allies 1 | . . 1 Largest Group 1 | . . 1 Highest-Rated Group 31 | . . 31 Highest-Rated Ally 31 | . . 31 Total Orders . | . . . Ally Attacks 3 | . . 3 Total Damage 42 | . . 42 Kills . | . . . Allies Corrupted . | . . . Allies Melted . | . . . Intel | -11 -10 -10 ------- Run | Yrd Mat Min Robot Analysis Total . | . . . Derelict Logs Recovered 1 | . . 1 Drone Launches . | . . . Drone Recoveries . | . . . Exploration | -11 -10 -10 ------------- Run | Yrd Mat Min Turns Passed 542 | 76 353 113 Spaces Moved 450 | 76 259 115 Core 26 | 26 . . Treads . | . . . Legs . | . . . Wheels 424 | 50 259 115 Hover . | . . . Flight . | . . . Fastest Speed 50 | 50 80 80 Average Speed 78 | 69 80 80 Slowest Speed 80 | 80 80 80 Overloaded Moves . | . . . Propulsion Burnouts . | . . . Robots Hopped . | . . . Cave-ins Triggered . | . . . Exploration Rate (%) 26 | 7 41 32 Regions Visited 2 Branch Regions 1 Pre-discovered Areas . | . . . Known Exits Taken . | . . . Unknown Exits Taken 2 | 1 1 . Scrap Searched . | . . . Spaces Dug . | . . . Terrain Destroyed . | . . . Melee . | . . . Projectile . | . . . AOE . | . . . Terrain Rammed . | . . . Walls Destroyed . | . . . Machines Disabled . | . . . Actions | -11 -10 -10 --------- Run | Yrd Mat Min Total 533 | 90 318 125 Wait . | . . . Move 448 | 75 258 115 Hop . | . . . Pick Up 16 | 6 10 . Fast Attach . | . . . Attach 11 | 5 5 1 Detach . | . . . Swap 2 | . 2 . Drop . | . . . Fire 53 | 4 43 6 Melee . | . . . Ram . | . . . Kick . | . . . Crush . | . . . Escape Stasis . | . . . Rewire . | . . . Trap 3 | . . 3 Miscellaneous . | . . . Route ------- -11/Scrapyard -10/Materials (discovered 3 exits: [*Mat x2] / [*Min]) -10/Mines History --------- Turn | Location | Event 2 | -11/Scrapyard | Met Revision 17 51 | -11/Scrapyard | Discovered new exit (range 8) 77 | -11/Scrapyard | Entered Materials 91 | -10/Materials | Discovered new exit (range 17) 217 | -10/Materials | Discovered new exit (range 16) 350 | -10/Materials | Core integrity fell below 50% 387 | -10/Materials | Discovered new exit (range 12) 430 | -10/Materials | Entered Mines 444 | -10/Mines | Learned Materials emergency access door positions 472 | -10/Mines | Met a Derelict testing a Signal Generator 511 | -10/Mines | Found a hidden stash of uninstalled traps 537 | -10/Mines | Core integrity fell below 20% 543 | -10/Mines | Destroyed by G-47 Trooper with Particle Gun Last Messages --------------- Signal Generator broadcasts a burst of procedurally generated transmissions. ALERT: Intercepting significant anomalous signal. Dispatching assault force. Signal Generator broadcasts a burst of procedurally generated transmissions. ALERT: Intercepting significant anomalous signal. Redirecting assault force. EV-G7J(g): "Okay, I guess that means it works. Now let's get out of here!" Move into an ally to swap places with them. ALERT: Intercepting significant anomalous signal. Redirecting assault force. A stash of uninstalled traps is collected here! Installed Proton Bomb Trap. Wheel destroyed. Med. Laser destroyed. M-13 Machinist repairs G-34 Mercenary. Ion Engine destroyed. [Achievement: First Step to Greatness] Map ----- +----------------------------------------------------+ | ????????????????????????????????????## ##?# #?## | | ?????????????????????????????????????###??# #??## | | ??????????????????????????????????????????# #???# | | ??????????????????????????????????????????# #??## | | ?????????????????????????? #?????????????# #??# | | ???????????????????????? #????????????# #??# | | ???????????????????????? #???????????# #??## | | ???????????????????????? ##???######## #???# | | ????????????????????????? ##??# #???# | | ?????????????????????????# ##?# #### ###???## | | ????????????????????????## #?# ##?# #??????# | | ????????????????????????# % ?## ### ??????? | | ????????????????????????# ?## #####?????? | | ?????????????????????????# ?## #?????????? | | ?????????????????????????#m #?# ##?????????? | | ????????????????????????## gg ### ##??????????? | | ????????????????????????# g t* ###???????????? | | ???????????????????????## ##?????????????? | | ???????????????????????# #??????????????? | | ??????????????????????## ##??????????????? | | ?????????????????????## #####???????????????? | | ????????????????????## ^ ##???????????????????? | | ????????????????????# ^ ##???????????????????? | | ???????????????????## ^ ##??????????????????? | | ??????????????????## ##?????????????????? | | ??????????????????# @ #?????????????????? | | ??????????????????# #?????????????????? | | ??????????????????## #?????????????????? | | ???????????????????## $???????????????? | | ????????????????????## ?????????????? | | ?????????????????????## ##########????????????? | | ??????????????????????######?????????????????????? | | ?????????????????????????????????????????????????? | | ?????????????????????????????????????????????????? | | ?????????????????????????????????????????????????? | | | | | | | | | | | | | | | | | | | | | | | | | | | | | | | +----------------------------------------------------+ Best States ------------- Heat Dissipation 35 Energy Generation 10 Energy Capacity 250 Matter Stores 300 Matter Capacity 400 Sight Range 16 Terrain Scan Density 10 Evasion (%) 50 Item Schematics ----------------- None Robot Schematics ------------------ None Fabricated ------------ Nothing Alien Tech Used ----------------- None Achievements -------------- First Step to Greatness One Hack Too Far Challenges ------------ None Game ------ Seed CargoIntegratedNeutralizer Manual? 0 Play Time 00:26:13 Cumulative 0.4 hours Start 2024.03.31 @ 20:45:31 End 2024.03.31 @ 21:15:29 Sessions 1 Manual Loads 0 Difficulty Rogue Special Mode None Game No. 1 Rogue 1 Adventurer 0 Explorer 0 Win Type - Total 0 Types 0/0/0/0/0/0/0/0/0 Lore% 0 Gallery% 1 Achievement% 0 Wizard Run 0 Options --------- Layout 1 ASCII 0 Keyboard 0 Movement Mouse Keybinds 0 Fullscreen 1 Font 24/Cog Map View 50x43 Zoom Use 0% Tactical HUD 0 Map Filters NONE Filters NONE Steam 1 RUN: b2f61429-614f-4dd1-bd20-9bd2e570fba4